bitfinex/quotes_ETHUSD_20250415
["timestamp","ask_amount","ask_price","bid_price","bid_amount"]
[1744697221406,6.09736,1640.1,1639.7,12.19711]
[1744697221601,13.490352,1640.1,1639.7,6.09849]
[1744697221855,7.392892,1640.1,1639.7,12.197]
[1744697222144,6.09736,1640.1,1639.7,12.197]
[1744697222647,6.09736,1640.1,1639.8,6.09828]
[1744697223003,12.19482,1640.1,1639.7,6.09849]
[1744697223207,6.09736,1640.1,1639.7,12.19702]
[1744697223549,12.95499,1640.2,1639.8,6.09814]
[1744697223732,14.250489,1640.2,1639.8,6.09814]
[1744697224243,6.09719,1640.1,1639.8,6.09814]
[1744697224835,12.19458,1640.1,1639.7,9.08107025]
[1744697225343,6.09719,1640.1,1639.7,9.08094025]
[1744697225650,6.09719,1640.1,1639.7,6.09849]
[1744697225821,6.09719,1640.1,1639.8,6.09825]
[1744697226328,6.09798,1639.9,1639.6,6.099]
[1744697226531,6.09831,1639.8,1639.5,6.09939]
[1744697226848,6.09913,1639.6,1639.3,6.10015]
[1744697227029,12.98027,1639.7,1639.3,6.09999]
[1744697227421,6.09909,1639.6,1639.3,6.09999]
[1744697227607,6.88128,1639.7,1639.3,12.20002]
[1744697228148,6.88128,1639.7,1639.1,9.10072]
[1744697228149,6.09958,1639.5,1639.1,9.10072]
[1744697228308,6.09958,1639.5,1639.1,15.20144]
[1744697228503,6.09958,1639.5,1639.1,6.10072]
[1744697228739,6.85014,1639.4,1639.0,12.20232]
[1744697228918,0.7502,1639.4,1639.0,6.10091]
[1744697229150,0.7502,1639.4,1639.1,6.10076]
[1744697229760,6.10022,1639.3,1638.9,6.10152]
[1744697229965,6.10022,1639.3,1638.8,6.8999]
[1744697229966,5.286,1639.3,1639.1,6.1009]
[1744697230485,5.286,1639.3,1639.1,6.10073]
[1744697231981,5.286,1639.3,1639.0,6.10124]
[1744697232146,6.91212,1639.2,1638.9,6.10162]
[1744697232679,6.91185,1639.2,1638.9,6.10162]
[1744697232865,0.8113,1639.2,1638.9,6.10162]
[1744697233878,0.8113,1639.2,1638.9,12.2031]
[1744697234080,0.8113,1639.2,1638.9,12.20301]
[1744697234289,0.8113,1639.2,1639.0,6.10125]
[1744697234444,5.286,1639.3,1639.1,6.10072]
[1744697234878,5.286,1639.3,1639.2,6.16153238]
[1744697235186,53.6527,1639.9,1639.7,6.09864]
[1744697235387,5.287,1639.9,1639.8,6.0983]
[1744697235586,0.7659,1640.1,1639.8,12.1966]
[1744697235790,0.7659,1640.1,1639.8,6.0983]
[1744697237682,0.7659,1640.1,1639.8,6.09825]
[1744697237846,6.86339,1640.1,1639.8,6.09825]
[1744697238186,0.7659,1640.1,1639.8,6.09825]
[1744697240193,5.287,1640.2,1640.0,6.09756]
[1744697240364,0.8098,1640.3,1639.9,0.7981]
[1744697240567,0.8098,1640.3,1640.0,6.09726]
[1744697241792,0.8098,1640.3,1640.1,6.09706]
[1744697242089,6.0394,1640.5,1640.2,6.09681]
[1744697242316,6.0394,1640.5,1640.3,6.09641]
[1744697242586,6.0394,1640.5,1640.2,6.09667]
[1744697242802,6.0394,1640.5,1640.1,6.09717]
[1744697242803,12.13528,1640.5,1640.1,6.09717]
[1744697243167,6.09612,1640.4,1640.1,6.09717]
[1744697243495,6.8486,1640.3,1639.9,6.09782]
[1744697243700,0.7991,1640.1,1639.8,6.09829]
[1744697244065,6.89629,1640.1,1639.7,6.09862]
[1744697244665,6.89629,1640.1,1639.7,12.19707]
[1744697244961,0.7991,1640.1,1639.8,6.09826]
[1744697245284,0.7991,1640.1,1639.8,6.09815]
[1744697246700,6.89639,1640.1,1639.7,6.09865]
[1744697246885,6.09768,1640.0,1639.7,6.09865]
[1744697247193,6.89639,1640.1,1639.8,6.09824]
[1744697247758,0.7991,1640.1,1639.8,12.1964]
[1744697247953,0.7991,1640.1,1639.9,6.15881705]
[1744697248198,6.1018,1640.3,1640.0,6.09756]
[1744697248501,6.88704,1640.2,1639.8,6.09829]
[1744697248656,6.88704,1640.2,1639.9,6.09793]
[1744697248979,0.79,1640.2,1639.9,6.09793]
[1744697249179,0.79,1640.2,1639.9,12.19567]
[1744697250192,0.79,1640.2,1640.0,6.09727]
[1744697250381,0.79,1640.2,1640.1,6.09718]
[1744697251104,5.287,1640.3,1640.1,6.09718]
[1744697251263,0.7729,1640.4,1640.2,6.09662]
[1744697251594,0.7729,1640.4,1640.3,6.09644]
[1744697251756,0.7729,1640.4,1640.2,12.1933]
[1744697251951,0.7729,1640.4,1640.2,6.09662]
[1744697252302,6.0918,1640.6,1640.4,6.09607]
[1744697252598,6.0918,1640.6,1640.3,6.09644]
[1744697253565,6.0918,1640.6,1640.4,6.09603]
[1744697254514,6.0918,1640.6,1640.3,6.09637]
[1744697254889,6.0918,1640.6,1640.3,6.09622]
[1744697255078,6.0918,1640.6,1640.3,7.503942]
[1744697255277,6.0918,1640.6,1640.4,6.0959]
[1744697255594,5.287,1640.6,1640.5,6.0957]
[1744697256413,5.287,1640.6,1640.4,6.0959]
[1744697256578,5.287,1640.6,1640.5,6.0957]
[1744697259018,5.287,1640.6,1640.4,6.0959]
[1744697259319,6.1147,1640.6,1640.4,6.0959]
[1744697263831,6.1147,1640.6,1640.3,6.09639]
[1744697264040,12.21006,1640.6,1640.2,12.19348]
[1744697264342,6.1147,1640.6,1640.3,6.09631]
[1744697265031,12.21003,1640.6,1640.3,6.09631]
[1744697265236,6.1147,1640.6,1640.3,12.19264]
[1744697265525,6.1147,1640.6,1640.3,6.09631]
[1744697265730,6.1147,1640.6,1640.1,0.7981]
[1744697265731,6.1147,1640.6,1640.4,12.19193]
[1744697265916,6.1147,1640.6,1640.4,6.09588]
[1744697267431,6.1147,1640.6,1640.4,12.1918]
[1744697267729,5.287,1640.6,1640.4,12.1918]
[1744697267915,5.287,1640.6,1640.4,6.09588]
[1744697268124,5.287,1640.6,1640.4,12.19182]
[1744697269464,5.287,1640.6,1640.4,6.09588]
[1744697269632,0.8125,1640.5,1640.3,12.19276]
[1744697270939,0.8125,1640.5,1640.3,6.09638]
[1744697271311,0.8125,1640.5,1640.3,12.19268]
[1744697271621,0.8125,1640.5,1640.3,6.0963]
[1744697272336,0.8125,1640.5,1640.4,6.09607]
[1744697272538,5.287,1640.6,1640.4,6.09607]
[1744697274144,5.287,1640.6,1640.3,6.0963]
[1744697274738,11.38235,1640.6,1640.3,6.0963]
[1744697274952,11.38235,1640.6,1640.2,6.09676]
[1744697274953,6.09609,1640.4,1640.1,6.09707]
[1744697275116,6.87805,1640.5,1640.1,12.19413]
[1744697275317,0.7821,1640.5,1640.2,6.09647]
[1744697275730,6.87815,1640.5,1640.1,12.9677]
[1744697276259,12.9742,1640.5,1640.1,12.9677]
[1744697276671,6.09611,1640.4,1640.1,6.09707]
[1744697276965,6.87784,1640.5,1640.2,0.06096249]
[1744697277462,0.7821,1640.5,1640.2,13.02349249]
[1744697277622,0.7821,1640.5,1640.2,12.96253]
[1744697278245,0.7821,1640.5,1640.3,6.09638]
[1744697279529,0.7821,1640.5,1640.2,6.86584]
[1744697280160,6.87787,1640.5,1640.2,0.7692]
[1744697280461,6.09645,1640.3,1640.0,6.0974]
[1744697280629,6.88315,1640.3,1639.9,6.09776]
[1744697280835,6.09682,1640.2,1639.9,6.09776]
[1744697281166,6.88315,1640.3,1639.9,6.09776]
[1744697281464,12.97977,1640.3,1639.9,12.882506]
[1744697281965,6.09688,1640.2,1639.9,0.686996]
[1744697282119,13.01944,1640.1,1639.7,6.09867]
[1744697282320,0.8247,1640.1,1639.6,6.88838]
[1744697282621,0.8287,1639.9,1639.7,6.15954524]
[1744697282850,0.8287,1639.9,1639.7,12.25811524]
[1744697283065,0.8287,1639.9,1639.7,6.09857]
[1744697285572,0.8233,1640.0,1639.7,12.19709]
[1744697285777,6.1043,1640.2,1640.1,6.09718]
[1744697285947,0.8233,1640.4,1640.0,2.98245025]
[1744697286152,0.8233,1640.4,1640.1,6.09709]
[1744697286885,0.8233,1640.4,1640.1,6.09707]
[1744697287877,6.91942,1640.4,1640.1,6.09707]
[1744697288379,6.91942,1640.4,1640.0,6.09752]
[1744697288681,5.281,1640.6,1639.9,6.09792]
[1744697288682,0.773,1640.2,1639.9,6.09792]
[1744697289339,6.86996,1640.2,1639.9,6.09792]
[1744697290691,6.86996,1640.2,1639.9,6.15889145]
[1744697290895,6.09583,1640.5,1640.1,6.09693]
[1744697291198,6.85473,1640.5,1640.2,6.09681]
[1744697294599,6.85473,1640.5,1640.1,6.09693]
[1744697294793,6.09648,1640.3,1640.0,6.89551]
[1744697295896,6.09681,1640.2,1639.9,6.85761]
[1744697296100,6.09681,1640.2,1639.8,6.09825]
[1744697296398,6.09731,1640.1,1639.7,6.85803]
[1744697296601,12.19485,1640.1,1639.8,0.685803]
[1744697296784,6.09759,1640.0,1639.8,0.685803]
[1744697296987,6.89894,1640.1,1639.7,6.85803]
[1744697297303,6.89896,1640.1,1639.8,6.09813]
[1744697298205,11.37787,1640.2,1639.8,3.04342371]
[1744697298497,11.37787,1640.2,1639.9,6.09778]
[1744697298876,17.47487,1640.2,1639.9,6.09778]
[1744697299074,17.47496,1640.2,1639.8,9.08070025]
[1744697299291,17.47496,1640.2,1639.8,6.09825]
[1744697299602,0.7614,1640.0,1639.7,6.09856]
[1744697299804,0.7614,1640.0,1639.8,6.0983]
[1744697300012,0.7842,1640.1,1639.8,6.0983]
[1744697300514,5.281,1640.2,1640.0,6.09756]
[1744697300877,5.281,1640.2,1639.9,0.7981]
[1744697301076,11.37793,1640.2,1639.8,15.17881025]
[1744697301276,11.37793,1640.2,1639.7,0.7894]
[1744697301277,6.88541,1640.1,1639.7,0.7894]
[1744697301494,6.88541,1640.1,1639.7,6.88793]
[1744697301692,6.09761,1640.0,1639.7,6.09853]
[1744697302418,12.98295,1640.1,1639.7,12.19706]
[1744697302569,12.98295,1640.1,1639.7,6.09853]
[1744697303798,6.09756,1640.0,1639.7,6.09853]
[1744697304000,6.09756,1640.0,1639.4,6.89125]
[1744697304001,6.88638,1639.8,1639.4,6.89125]
[1744697304209,6.09914,1639.6,1639.2,12.99209]
[1744697304516,6.09873,1639.7,1639.3,6.09998]
[1744697304723,6.09911,1639.6,1639.3,6.09996]
[1744697305370,6.90714,1639.5,1639.1,6.10085]
[1744697305770,6.09991,1639.4,1639.1,6.10085]
[1744697306321,6.09991,1639.4,1638.6,6.10273]
[1744697306322,0.7981,1639.0,1638.6,6.10273]
[1744697306611,6.89953,1639.0,1638.7,4.0]
[1744697306818,6.10177,1638.9,1638.7,4.0]
[1744697307517,6.10177,1638.9,1638.4,7.20349]
[1744697307518,0.7912,1638.9,1638.4,1.1]
[1744697307717,6.89399,1638.6,1638.4,1.1]
[1744697307921,6.0742,1638.6,1638.4,1.1]
[1744697309068,6.0742,1638.6,1638.4,7.20349]
[1744697309273,5.283,1638.6,1638.5,6.10314]
[1744697309472,0.768,1638.9,1638.7,6.10209]
[1744697309473,6.051,1638.9,1638.7,6.10209]
[1744697309713,6.051,1638.9,1638.8,6.10202]
[1744697310311,5.283,1638.9,1638.8,6.10202]
[1744697310726,5.283,1638.9,1638.7,6.10209]
[1744697310895,5.283,1638.9,1638.8,6.10202]
[1744697312308,5.283,1638.9,1638.7,6.10209]
[1744697312517,5.283,1638.9,1638.7,12.20426]
[1744697312698,5.283,1638.9,1638.8,6.10202]
[1744697313606,5.283,1638.9,1638.7,6.10209]
[1744697314537,5.283,1638.9,1638.8,6.10202]
[1744697314729,5.283,1638.9,1638.7,6.10209]
[1744697314930,0.8332,1638.8,1638.6,6.10272]
[1744697316088,0.8332,1638.8,1638.5,6.16412468]
[1744697316293,0.8332,1638.8,1638.6,6.10273]
[1744697316847,5.8113,1638.9,1638.7,6.10215]
[1744697316848,5.283,1638.9,1638.7,6.10215]
[1744697317331,5.283,1638.9,1638.8,6.10202]
[1744697317506,0.7843,1639.0,1638.8,6.10202]
[1744697317830,6.0802,1639.2,1638.9,6.10146]
[1744697318014,7.27982812,1639.2,1638.9,6.10146]
[1744697318431,6.0802,1639.2,1639.0,6.10098]
[1744697318928,6.0802,1639.2,1638.9,6.10164]
[1744697319128,12.18089,1639.2,1638.8,6.10199]
[1744697319431,12.18089,1639.2,1638.8,12.20381]
[1744697319937,12.18089,1639.2,1638.9,6.10165]
[1744697320224,12.18089,1639.2,1639.0,6.10103]
[1744697320225,5.321,1639.2,1639.0,6.10103]
[1744697321543,5.321,1639.2,1639.1,6.1009]
[1744697323946,5.321,1639.2,1639.1,6.8902]
[1744697324345,3.822,1639.5,1639.2,6.10019]
[1744697324550,3.822,1639.5,1639.3,6.10007]
[1744697324751,4.6811421,1639.5,1639.3,6.10007]
[1744697328758,11.42008,1639.6,1639.3,6.10007]
[1744697329181,5.321,1639.6,1639.3,12.20008]
[1744697329559,5.321,1639.6,1639.3,6.10001]
[1744697330579,5.321,1639.6,1639.2,6.10047]
[1744697330580,6.86468,1639.5,1639.0,6.89924]
[1744697330785,12.19997,1639.4,1639.0,6.10114]
[1744697331075,6.09998,1639.4,1639.0,12.2023]
[1744697331749,6.09998,1639.4,1639.1,6.10086]
[1744697331944,12.96424,1639.5,1639.1,6.10074]
[1744697332157,6.86462,1639.5,1639.1,6.10074]
[1744697332364,6.09982,1639.4,1639.1,6.10074]
[1744697332887,8.083182,1639.5,1639.1,12.2015]
[1744697333099,0.7652,1639.5,1639.2,12.20079]
[1744697333383,0.7652,1639.5,1639.2,6.10037]
[1744697333554,5.321,1639.6,1639.4,6.09968]
[1744697333758,5.321,1639.6,1639.4,12.1993]
[1744697334644,5.321,1639.6,1639.4,6.09962]
[1744697335249,5.321,1639.6,1639.3,12.20026]
[1744697335462,5.321,1639.6,1639.3,6.10013]
[1744697335697,13.251897,1639.6,1639.2,6.10045]
[1744697335900,6.92976,1639.5,1639.2,6.10045]
[1744697336066,13.02939,1639.5,1639.1,6.10082]
[1744697336261,0.7617,1639.3,1639.0,6.10111]
[1744697336978,0.7617,1639.3,1639.1,6.1007]
[1744697337183,0.7617,1639.3,1639.1,12.20152]
[1744697337895,6.85366,1639.5,1639.1,12.20152]
[1744697338095,2.7647377,1639.5,1639.2,6.10051]
[1744697338298,2.7647377,1639.5,1639.3,6.10014]
[1744697338797,0.7542,1639.5,1639.3,6.10014]
[1744697338958,5.32,1639.5,1639.4,6.09979]
[1744697341805,5.32,1639.5,1639.2,6.10032]
[1744697342604,5.32,1639.5,1639.2,12.20075]
[1744697343777,5.32,1639.5,1639.3,6.10012]
[1744697344813,5.32,1639.5,1639.3,12.20011]
[1744697345310,5.32,1639.5,1639.4,6.09979]
[1744697345497,5.32,1639.5,1639.4,6.89789]
[1744697346080,1.10635701,1639.8,1639.4,0.8590923]
[1744697346273,0.31815701,1639.8,1639.7,6.09867]
[1744697346509,5.331,1639.9,1639.8,6.0983]
[1744697347626,12.24876,1639.9,1639.5,6.88059]
[1744697347782,12.24876,1639.9,1639.5,6.09929]
[1744697347976,12.24867,1639.9,1639.5,12.19852]
[1744697348182,14.083297,1639.9,1639.6,6.09903]
[1744697349621,7.985127,1639.9,1639.6,12.19796]
[1744697351725,14.083197,1639.9,1639.6,6.09893]
[1744697352021,6.09854,1639.8,1639.4,6.88274]
[1744697352181,12.19716,1639.8,1639.4,6.09974]
[1744697352516,14.2153887,1639.8,1639.4,6.09974]
[1744697352715,6.88316,1639.7,1639.4,6.09974]
[1744697352922,0.7843,1639.7,1639.4,12.19938]
[1744697353823,0.7843,1639.7,1639.5,6.09937]
[1744697354519,11.42899,1639.9,1639.5,6.09937]
[1744697354691,6.1028,1639.9,1639.6,12.19775]
[1744697354883,6.1028,1639.9,1639.6,6.09883]
[1744697355226,12.20079,1639.9,1639.6,6.09883]
[1744697355408,18.299,1639.9,1639.5,6.09938]
[1744697355820,12.20079,1639.9,1639.5,12.19862]
[1744697356386,14.030629,1639.9,1639.5,12.19862]
[1744697357328,7.932639,1639.9,1639.6,6.09904]
[1744697357500,6.1028,1639.9,1639.7,6.09863]
[1744697358091,6.1028,1639.9,1639.6,6.0989]
[1744697358930,6.1028,1639.9,1639.7,6.09865]
[1744697359407,6.1028,1639.9,1639.7,12.19715]
[1744697359606,6.1028,1639.9,1639.7,6.0985]
[1744697359825,6.1028,1639.9,1639.6,6.09888]
[1744697359993,6.1028,1639.9,1639.6,12.19778]
[1744697361343,6.1028,1639.9,1639.7,6.09859]
[1744697361722,6.1028,1639.9,1639.6,6.09888]
[1744697362032,6.09849,1639.8,1639.4,6.09973]
[1744697362235,0.7681,1639.5,1639.2,6.1002]
[1744697362416,6.10013,1639.4,1639.0,6.1012]
[1744697362609,6.10013,1639.4,1639.0,12.20232]
[1744697362937,12.20026,1639.4,1639.0,12.20232]
[1744697363603,12.20026,1639.4,1639.0,6.10112]
[1744697364136,6.92173,1639.3,1638.9,6.1016]
[1744697364350,6.92173,1639.3,1638.9,12.2032]
[1744697364899,6.10054,1639.2,1638.8,6.10195]
[1744697365143,0.795,1639.1,1638.8,6.10184]
[1744697365434,12.837034,1639.1,1638.8,6.10184]
[1744697365676,12.837034,1639.1,1638.6,6.10271]
[1744697365677,6.10164,1639.0,1638.6,6.10271]
[1744697365800,6.10221,1638.8,1638.4,6.10335]
[1744697366003,0.8238,1638.6,1638.4,4.0]
[1744697366633,0.8238,1638.6,1638.3,6.10366]
[1744697367030,6.92658,1638.6,1638.2,6.10424]
[1744697367634,0.7977,1638.4,1638.1,0.05]
[1744697367970,5.332,1638.3,1638.1,0.05]
[1744697368174,6.555344,1638.3,1638.1,0.05]
[1744697369172,5.332,1638.3,1638.2,6.10426]
[1744697369374,5.332,1638.3,1638.1,6.15443]
[1744697369610,5.332,1638.3,1638.1,0.05]
[1744697372214,11.4359,1638.3,1638.1,0.05]
[1744697373246,6.86546,1638.2,1638.1,0.05]
[1744697373420,8.695596,1638.2,1638.1,0.05]
[1744697373767,8.702796,1638.2,1638.1,0.05]
[1744697376156,2.598536,1638.2,1638.1,0.05]
[1744697376325,6.0794,1638.2,1638.1,0.05]
[1744697376859,12.18366,1638.2,1638.1,0.05]
[1744697379737,12.73366,1638.2,1638.1,0.05]
[1744697380072,15.73366,1638.2,1638.1,0.05]
[1744697380283,21.8786196,1638.2,1638.1,0.05]
[1744697382048,21.3286196,1638.2,1638.1,0.05]
[1744697382253,21.8786196,1638.2,1638.1,0.05]
[1744697383144,22.32629535,1638.2,1638.1,0.05]
[1744697385885,6.91025,1637.8,1637.7,0.55]
[1744697386089,12.22225,1637.8,1637.7,0.55]
[1744697387585,12.77225,1637.8,1637.7,0.55]
[1744697387889,15.77225,1637.8,1637.7,0.55]
[1744697389197,18.75933187,1637.8,1637.7,0.55]
[1744697389374,21.85637106,1637.8,1637.7,0.55]
[1744697389576,6.93591,1637.3,1637.2,0.40189394]
[1744697389778,12.24891,1637.3,1637.2,0.40189394]
[1744697389979,14.084541,1637.3,1637.2,0.40189394]
[1744697391652,17.084541,1637.3,1637.2,0.40189394]
[1744697391852,20.61002287,1637.3,1637.2,0.40189394]
[1744697392150,20.51002287,1637.3,1637.2,0.40189394]
[1744697392992,16.972941,1637.3,1637.2,0.40189394]
[1744697393164,15.13731,1637.3,1637.2,0.40189394]
[1744697394558,14.32061,1637.3,1637.2,0.40189394]
[1744697396260,18.65829187,1637.3,1637.2,0.40189394]
[1744697396460,24.79829187,1637.3,1637.2,0.40189394]
[1744697398116,15.2536,1637.3,1637.2,0.40189394]
[1744697398321,27.5061696,1637.3,1637.2,0.40189394]
[1744697400839,20.5655696,1637.3,1637.2,0.40189394]
[1744697402514,21.1155696,1637.3,1637.2,0.40189394]
[1744697403138,20.5655696,1637.3,1637.2,0.40189394]
[1744697403457,5.307,1637.3,1637.2,0.40189394]
[1744697403637,5.307,1637.3,1637.2,6.50972394]
[1744697403851,5.307,1637.3,1637.2,0.40189394]
[1744697404140,11.41461,1637.3,1637.2,0.40189394]
[1744697404778,5.307,1637.3,1637.2,0.40189394]
[1744697407737,52.928,1637.4,1637.2,7.28551394]
[1744697407963,52.928,1637.4,1637.2,1.17779394]
[1744697408146,52.928,1637.4,1637.2,7.28562394]
[1744697408753,52.928,1637.4,1637.2,1.17779394]
[1744697409943,59.03534,1637.4,1637.2,1.17779394]
[1744697410281,52.928,1637.4,1637.2,1.17779394]
[1744697410589,5.307,1637.4,1637.2,1.17779394]
[1744697411585,11.41428,1637.4,1637.2,1.17779394]
[1744697412194,5.307,1637.4,1637.2,1.17779394]
[1744697413001,6.10726,1637.4,1637.2,1.17779394]
[1744697413670,12.21405,1637.5,1637.2,1.17779394]
[1744697413875,9.97953919,1637.8,1637.4,6.10719]
[1744697414063,9.10628,1637.7,1637.5,0.7561]
[1744697415198,6.10699,1637.5,1637.3,0.7981]
[1744697415398,6.10761,1637.3,1637.2,0.40189394]
[1744697417168,6.90851,1637.3,1637.2,0.40189394]
[1744697417819,10.45851,1637.3,1637.2,0.40189394]
[1744697418000,13.02454819,1637.3,1637.2,0.40189394]
[1744697418525,18.33154819,1637.3,1637.2,0.40189394]
[1744697418919,24.47154819,1637.3,1637.2,0.40189394]
[1744697419138,6.10995,1636.7,1636.3,6.89632]
[1744697419291,11.4174,1636.6,1636.3,0.7851]
[1744697419497,6.11063,1636.5,1636.3,0.7851]
[1744697419892,0.7623,1636.4,1636.1,0.05]
[1744697420299,1.222103,1636.5,1636.3,6.1111]
[1744697420604,12.98317,1636.6,1636.2,6.11153]
[1744697420821,5.307,1636.6,1636.3,6.11121]
[1744697421200,11.41723,1636.6,1636.2,6.11171]
[1744697421737,6.11075,1636.5,1636.1,6.91295]
[1744697422244,6.11118,1636.4,1636.1,0.8009]
[1744697422749,6.1106,1636.5,1636.1,13.02488]
[1744697422917,13.170039,1636.6,1636.2,6.11169]
[1744697423515,6.11061,1636.5,1636.1,6.91284]
[1744697423720,7.059709,1636.6,1636.3,6.11119]
[1744697423905,5.307,1636.6,1636.3,6.11119]
[1744697424123,6.11128,1636.4,1636.1,0.05]
[1744697424329,12.22249,1636.4,1636.1,0.05]
[1744697424560,13.82561719,1636.4,1636.1,0.05]
[1744697424724,13.82557719,1636.4,1636.1,0.05]
[1744697425051,6.11135,1636.3,1636.1,0.05]
[1744697425254,5.308,1636.2,1636.1,0.05]
[1744697425416,11.41972,1636.2,1636.1,0.05]
[1744697425611,13.172827,1636.2,1636.1,0.05]
[1744697426913,13.946727,1636.2,1636.1,0.05]
[1744697427726,14.496727,1636.2,1636.1,0.05]
[1744697428230,17.496727,1636.2,1636.1,0.05]
[1744697429158,13.946727,1636.2,1636.1,0.05]
[1744697429722,14.496727,1636.2,1636.1,0.05]
[1744697429961,65.13680887,1636.2,1636.1,0.05]
[1744697433870,64.599727,1636.2,1636.1,0.05]
[1744697434284,65.149727,1636.2,1636.1,0.05]
[1744697436005,60.912827,1636.2,1636.1,0.05]
[1744697436583,49.406107,1636.2,1636.1,0.05]
[1744697436782,5.396,1636.4,1636.2,6.1116]
[1744697436985,5.396,1636.4,1636.1,13.07205]
[1744697437227,5.396,1636.4,1636.3,6.11134]
[1744697437382,5.396,1636.6,1636.4,0.7861]
[1744697437589,11.5064,1636.6,1636.4,0.7861]
[1744697437818,5.396,1636.6,1636.4,6.89691]
[1744697438030,5.396,1636.6,1636.5,6.1106]
[1744697440305,5.396,1636.6,1636.4,6.89691]
[1744697440827,5.396,1636.6,1636.5,6.1106]
[1744697442217,5.396,1636.6,1636.5,6.9087]
[1744697445942,5.394,1636.9,1636.5,0.85920125]
[1744697446240,5.394,1636.9,1636.8,6.90758]
[1744697449353,5.9334,1636.9,1636.6,6.11017]
[1744697450147,5.394,1636.9,1636.7,6.10962]
[1744697451243,5.394,1636.9,1636.8,6.10948]
[1744697451448,5.394,1636.9,1636.8,6.90758]
[1744697452453,20.88334482,1637.2,1636.8,6.90758]
[1744697452649,20.88334482,1637.2,1636.8,13.01687]
[1744697452837,20.88334482,1637.2,1636.8,6.90739]
[1744697453163,6.10836,1637.1,1636.8,6.90739]
[1744697453858,14.77504482,1637.2,1636.8,13.01675]
[1744697454168,5.393,1637.2,1636.9,6.1091]
[1744697454477,5.393,1637.2,1637.0,6.10851]
[1744697454765,5.393,1637.2,1637.1,6.87746]
[1744697455527,47.655,1637.4,1637.1,12.98582]
[1744697456182,47.655,1637.4,1637.1,6.87746]
[1744697456777,47.655,1637.4,1637.1,12.98567]
[1744697457678,47.655,1637.4,1637.2,6.10786]
[1744697457981,47.655,1637.4,1637.1,6.8774]
[1744697458479,47.655,1637.4,1637.1,0.83017893]
[1744697458696,5.393,1637.5,1637.4,6.87194]
[1744697461391,5.393,1637.5,1637.2,6.10794]
[1744697461544,11.49991,1637.5,1637.2,6.10794]
[1744697461888,17.60698,1637.5,1637.1,6.8848]
[1744697462183,6.10731,1637.4,1637.1,6.8848]
[1744697462491,5.393,1637.5,1637.3,6.10759]
[1744697462657,5.393,1637.5,1637.3,6.10744]
[1744697462858,5.393,1637.5,1637.3,6.56891574]
[1744697463078,5.393,1637.5,1637.1,0.7765]
[1744697463382,7.45947,1637.4,1637.0,6.1086]
[1744697463587,6.10773,1637.3,1637.0,6.1086]
[1744697464382,7.45937,1637.4,1637.0,12.21716]
[1744697464679,5.393,1637.5,1637.0,0.06108198]
[1744697464984,5.393,1637.5,1637.2,6.10793]
[1744697465142,5.393,1637.5,1637.2,6.10783]
[1744697465343,6.10745,1637.4,1637.1,6.10823]
[1744697465786,6.10745,1637.4,1637.1,6.90633]
[1744697466278,6.10745,1637.4,1637.1,0.7981]
[1744697466581,13.364975,1637.4,1637.1,0.7981]
[1744697466780,13.364975,1637.4,1637.0,6.1087]
[1744697466974,13.364975,1637.4,1637.0,6.9047]
[1744697467176,6.10766,1637.3,1637.0,6.9047]
[1744697467430,6.10766,1637.3,1636.9,12.21804]
[1744697467431,13.04353,1637.3,1636.9,12.21804]
[1744697467751,14.4628875,1637.3,1636.9,12.21804]
[1744697468177,8.3550175,1637.3,1636.9,12.21804]
[1744697468364,8.3550175,1637.3,1637.0,6.10859]
[1744697469169,8.3550175,1637.3,1636.9,12.21798]
[1744697470386,14.4628675,1637.3,1636.9,12.21798]
[1744697470594,1.44628675,1637.2,1636.8,7.36086491]
[1744697470755,11.53247,1637.1,1636.8,1.25150491]
[1744697471099,11.53247,1637.1,1636.8,0.45550491]
[1744697471393,11.53247,1637.1,1636.8,6.10927]
[1744697471798,5.424,1637.1,1636.8,12.21854]
[1744697472168,5.424,1637.1,1637.0,6.10873]
[1744697472757,5.424,1637.1,1637.0,6.57762027]
[1744697473962,5.424,1637.4,1637.2,6.10797]
[1744697474697,11.53135,1637.4,1637.0,6.57761027]
[1744697474925,11.53135,1637.4,1637.0,6.10872]
[1744697475200,12.21572,1637.3,1636.9,6.90697]
[1744697475492,1.763972,1637.3,1637.0,6.10861]
[1744697475794,11.53138,1637.4,1637.0,6.10861]
[1744697475954,17.63882,1637.4,1637.1,6.10819]
[1744697476155,6.10764,1637.3,1637.0,6.10856]
[1744697477193,6.10764,1637.3,1636.9,7.35825679]
[1744697477194,0.7799,1637.3,1636.9,1.24921679]
[1744697477359,6.10811,1637.2,1636.9,1.24921679]
[1744697477898,1.299568,1637.2,1636.9,0.7981]
[1744697478097,6.88756,1637.3,1636.7,6.89191]
[1744697478301,6.88756,1637.3,1636.5,6.89265]
[1744697478302,0.7799,1637.0,1636.5,6.89265]
[1744697478456,12.31263,1637.0,1636.6,6.11005]
[1744697478792,12.31263,1637.0,1636.6,12.2201]
[1744697479489,5.424,1637.0,1636.6,0.06109622]
[1744697479661,5.424,1637.0,1636.8,6.10912]
[1744697479851,5.424,1637.0,1636.8,12.21845]
[1744697480051,5.424,1637.0,1636.8,6.10912]
[1744697480254,11.53279,1637.0,1636.7,6.9078]